Workbook

Sheet Sheet2
A1: DT | F1: 初期値 | G1: 耐用年数 | H1: 初期値 | K1: 建設期間 | N1: 調整期間 | S1: * PROTOTYPE Ⅰ
A2: 1 | F2: =B4*H2 -> 113.3691848 | G2: 10 | H2: 1.5 | K2: 1 | N2: 2 | S2: NOTE *****national economy with decision process of capital investment*****
B3: 生産実績 | C3: 家計消費 | D3: 設備投資 | E3: 需要定数 | F3: 資本 | G3: 除却 | H3: 資本係数 | I3: 更新投資 | J3: 新規投資 | K3: 未実現投資 | L3: 実現 | M3: 計画 | N3: 必要資本 | O3: 目標 | P3: 需要 | Q3: 追加需要 | R3: 消費性向 | S3: A demand=consumption+replacement+net_investment+other_expenditures
A4: 1970 | B4: 75.57945655 | C4: 36.63513742 | D4: 21.11197629 | E4: 17.83234285 | F4: =F2 -> 113.3691848 | G4: =F4/$G$2 -> 11.33691848 | H4: =F4/B4 -> 1.5 | I4: =G4 -> 11.33691848 | J4: =D4-I4 -> 9.775057804 | K4: =J4*$K$2 -> 9.775057804 | L4: =J4 -> 9.775057804 | M4: =(K5-K4)/$A$2+L4 -> 9.795008907 | N4: =M4*$N$2+F4 -> 132.9592026 | O4: =N4/H4 -> 88.63946843 | P4: =C4+I4+J4+E4 -> 75.57945655 | Q4: =O4-P4 -> 13.06001188 | R4: =C4/B4 -> 0.484723483 | S4: A consumption=propencity_to_consume×production
A5: 1971 | B5: 82.77912049 | C5: 41.29866196 | D5: 22.10943317 | E5: 19.37102537 | F5: =F4+$A$2*(D4-G4) -> 123.1442426 | G5: =F5/$G$2 -> 12.31442426 | H5: =F5/B5 -> 1.487624438 | I5: =G5 -> 12.31442426 | J5: =D5-I5 -> 9.795008907 | K5: =J5*$K$2 -> 9.795008907 | L5: =J5 -> 9.795008907 | M5: =(K6-K5)/$A$2+L5 -> 11.35666502 | N5: =M5*$N$2+F5 -> 145.8575727 | O5: =N5/H5 -> 98.04730879 | P5: =C5+I5+J5+E5 -> 82.77912049 | Q5: =O5-P5 -> 15.2681883 | R5: =C5/B4 -> 0.5464270827 | S5: R production=capital/capital_coefficient
A6: 1972 | B6: 94.8045399 | C6: 47.66342696 | D6: 24.65059017 | E6: 22.49052276 | F6: =F5+$A$2*(D5-G5) -> 132.9392515 | G6: =F6/$G$2 -> 13.29392515 | H6: =F6/B6 -> 1.402245628 | I6: =G6 -> 13.29392515 | J6: =D6-I6 -> 11.35666502 | K6: =J6*$K$2 -> 11.35666502 | L6: =J6 -> 11.35666502 | M6: =(K7-K6)/$A$2+L6 -> 17.75531495 | N6: =M6*$N$2+F6 -> 168.4498814 | O6: =N6/H6 -> 120.1286552 | P6: =C6+I6+J6+E6 -> 94.8045399 | Q6: =O6-P6 -> 25.32411526 | R6: =C6/B5 -> 0.575790449 | S6: R capital_investment=replacement+net_investment
A7: 1973 | B7: 115.6383471 | C7: 57.58728561 | D7: 32.18490661 | E7: 25.86615492 | F7: 144.2959166 | G7: 14.42959166 | H7: 1.247820642 | I7: =G7 -> 14.42959166 | J7: =D7-I7 -> 17.75531495 | K7: 17.75531495 | L7: 17.75531495 | M7: 21.11093295 | N7: =M7*$N$2+F7 -> 186.5177825 | O7: =N7/H7 -> 149.4748333 | P7: =C7+I7+J7+E7 -> 115.6383471 | Q7: 33.83648618 | R7: =C7/B6 -> 0.6074317293 | S7: A replacement=capital/duration_period
A8: 1974 | B8: 138.6963827 | C8: 69.57993636 | D8: 37.3160561 | E8: 31.80039022 | F8: 162.0512315 | G8: 16.20512315 | H8: 1.168388305 | I8: =G8 -> 16.20512315 | J8: =D8-I8 -> 21.11093295 | K8: 21.11093295 | L8: 21.11093295 | M8: 19.52536958 | N8: =M8*$N$2+F8 -> 201.1019707 | O8: =N8/H8 -> 172.1191232 | P8: =C8+I8+J8+E8 -> 138.6963827 | Q8: 33.42274052 | R8: =C8/B7 -> 0.6017029651 | S8: L capital.K=capital.J+DT×(capital_investment.JK-retirement.JK)
A9: 1975 | B9: 152.5877241 | C9: 80.85040197 | D9: 37.84158602 | E9: 33.89573613 | F9: 183.1621645 | G9: 18.31621645 | H9: 1.200372871 | I9: =G9 -> 18.31621645 | J9: =D9-I9 -> 19.52536958 | K9: 19.52536958 | L9: 19.52536958 | M9: 19.6288641 | N9: =M9*$N$2+F9 -> 222.4198927 | O9: =N9/H9 -> 185.2923355 | P9: =C9+I9+J9+E9 -> 152.5877241 | Q9: 32.70461134 | R9: =C9/B8 -> 0.5829308624 | S9: R retirement=replacement
A10: 1976 | B10: 171.3369564 | C10: 91.38041639 | D10: 39.89761751 | E10: 40.05892251 | F10: 202.687534 | G10: 20.2687534 | H10: 1.182976156 | I10: =G10 -> 20.2687534 | J10: =D10-I10 -> 19.6288641 | K10: 19.6288641 | L10: 19.6288641 | M10: 20.82968901 | N10: =M10*$N$2+F10 -> 244.3469121 | O10: =N10/H10 -> 206.5526941 | P10: =C10+I10+J10+E10 -> 171.3369564 | Q10: 35.21573772 | R10: =C10/B9 -> 0.5988713503 | S10: A net_investment=asset_under_construction/construction_period
A11: 1977 | B11: 190.9080678 | C11: 102.1726765 | D11: 43.06132883 | E11: 45.67406246 | F11: 222.3163981 | G11: 22.23163981 | H11: 1.164520707 | I11: =G11 -> 22.23163981 | J11: =D11-I11 -> 20.82968901 | K11: 20.82968901 | L11: 20.82968901 | M11: 23.48615272 | N11: =M11*$N$2+F11 -> 269.2887036 | O11: =N11/H11 -> 231.244238 | P11: =C11+I11+J11+E11 -> 190.9080678 | Q11: 40.33617019 | R11: =C11/B10 -> 0.5963259688 | S11: L asset_under_construction.K=asset_under_construction.J+DT×(planning.JK-completion.JK)
A12: 1978 | B12: 209.991825 | C12: 112.5341681 | D12: 47.80076144 | E12: 49.65689545 | F12: 243.1460872 | G12: 24.31460872 | H12: 1.157883585 | I12: =G12 -> 24.31460872 | J12: =D12-I12 -> 23.48615272 | K12: 23.48615272 | L12: 23.48615272 | M12: 29.2482615 | N12: =M12*$N$2+F12 -> 301.6426102 | O12: =N12/H12 -> 260.512036 | P12: =C12+I12+J12+E12 -> 209.991825 | Q12: 50.52021098 | R12: =C12/B11 -> 0.5894678491 | S12: R completion=net_investment
A13: 1979 | B13: 227.769834 | C13: 124.1569557 | D13: 55.91148549 | E13: 47.70139277 | F13: 266.6322399 | G13: 26.66322399 | H13: 1.170621391 | I13: =G13 -> 26.66322399 | J13: =D13-I13 -> 29.2482615 | K13: 29.2482615 | L13: 29.2482615 | M13: 29.97264984 | N13: =M13*$N$2+F13 -> 326.5775396 | O13: =N13/H13 -> 278.9779361 | P13: =C13+I13+J13+E13 -> 227.769834 | Q13: 51.20810208 | R13: =C13/B12 -> 0.5912466151 | S13: R planning=(required_capital-capital)/adjustment_period
A14: 1980 | B14: 244.978015 | C14: 134.8959179 | D14: 59.56069998 | E14: 50.52139711 | F14: 295.8805014 | G14: 29.58805014 | H14: 1.207783896 | I14: =G14 -> 29.58805014 | J14: =D14-I14 -> 29.97264984 | K14: 29.97264984 | L14: 29.97264984 | M14: 30.64661098 | N14: =M14*$N$2+F14 -> 357.1737233 | O14: =N14/H14 -> 295.7265157 | P14: =C14+I14+J14+E14 -> 244.978015 | Q14: 50.74850074 | R14: =C14/B13 -> 0.5922466356 | S14: A required_capital=target_demand×capital_coefficient
A15: 1981 | B15: 263.3963164 | C15: 143.5189669 | D15: 63.2319261 | E15: 56.64542342 | F15: 325.8531512 | G15: 32.58531512 | H15: 1.23712114 | I15: =G15 -> 32.58531512 | J15: =D15-I15 -> 30.64661098 | K15: 30.64661098 | L15: 30.64661098 | M15: 28.25960695 | N15: =M15*$N$2+F15 -> 382.3723651 | O15: =N15/H15 -> 309.0823952 | P15: =C15+I15+J15+E15 -> 263.3963164 | Q15: 45.68607881 | R15: =C15/B14 -> 0.5858442722 | S15: A target_demand=demand+additional_demand
A16: 1982 | B16: 276.6557611 | C16: 154.0356075 | D16: 63.90958317 | E16: 58.71057047 | F16: 356.4997622 | G16: 35.64997622 | H16: 1.288604151 | I16: =G16 -> 35.64997622 | J16: =D16-I16 -> 28.25960695 | K16: 28.25960695 | L16: 28.25960695 | M16: 24.79806 | N16: =M16*$N$2+F16 -> 406.0958822 | O16: =N16/H16 -> 315.1440121 | P16: =C16+I16+J16+E16 -> 276.6557611 | Q16: 38.488251 | R16: =C16/B15 -> 0.5848054734 | S16: NOTE *****EXOGENOUS VARIABLES*****
A17: 1983 | B17: 287.642204 | C17: 162.1779367 | D17: 63.27399692 | E17: 62.19027039 | F17: 384.7593691 | G17: 38.47593691 | H17: 1.337631835 | I17: =G17 -> 38.47593691 | J17: =D17-I17 -> 24.79806 | K17: 24.79806 | L17: 24.79806 | M17: 26.34632045 | N17: =M17*$N$2+F17 -> 437.45201 | O17: =N17/H17 -> 327.0346881 | P17: =C17+I17+J17+E17 -> 287.642204 | Q17: 39.39248417 | R17: =C17/B16 -> 0.5862084202 | S17: A other_expenditures=TABXL(SHEET2!E4)
A18: 1984 | B18: 306.0785363 | C18: 170.5037031 | D18: 67.30206336 | E18: 68.27276991 | F18: 409.5574291 | G18: 40.95574291 | H18: 1.338079547 | I18: =G18 -> 40.95574291 | J18: =D18-I18 -> 26.34632045 | K18: 26.34632045 | L18: 26.34632045 | M18: 30.06528397 | N18: =M18*$N$2+F18 -> 469.6879971 | O18: =N18/H18 -> 351.0164984 | P18: =C18+I18+J18+E18 -> 306.0785363 | Q18: 44.93796209 | R18: =C18/B17 -> 0.5927631645 | S18: A capital_coefficient=TABXL(SHEET2!H4)
A19: 1985 | B19: 329.0400887 | C19: 180.2434252 | D19: 73.65565893 | E19: 75.14100459 | F19: 435.9037496 | G19: 43.59037496 | H19: 1.324773985 | I19: =G19 -> 43.59037496 | J19: =D19-I19 -> 30.06528397 | K19: 30.06528397 | L19: 30.06528397 | M19: 30.16267458 | N19: =M19*$N$2+F19 -> 496.2290988 | O19: =N19/H19 -> 374.5764216 | P19: =C19+I19+J19+E19 -> 329.0400887 | Q19: 45.53633287 | R19: =C19/B18 -> 0.5888796626 | S19: A additional_demand=TABXL(SHEET2!Q4)
A20: 1986 | B20: 344.2735861 | C20: 187.7128573 | D20: 76.75957794 | E20: 79.80115084 | F20: 465.9690336 | G20: 46.59690336 | H20: 1.353484706 | I20: =G20 -> 46.59690336 | J20: =D20-I20 -> 30.16267458 | K20: 30.16267458 | L20: 30.16267458 | M20: 30.5554886 | N20: =M20*$N$2+F20 -> 527.0800108 | O20: =N20/H20 -> 389.4244303 | P20: =C20+I20+J20+E20 -> 344.2735861 | Q20: 45.15084427 | R20: =C20/B19 -> 0.5704862834 | S20: A propencity_to_consume=TABXL(SHEET2!R4)
A21: 1987 | B21: 357.7477505 | C21: 196.4594479 | D21: 80.16865941 | E21: 81.11964318 | F21: 496.1317081 | G21: 49.61317081 | H21: 1.386819924 | I21: =G21 -> 49.61317081 | J21: =D21-I21 -> 30.5554886 | K21: 30.5554886 | L21: 30.5554886 | M21: 38.37650584 | N21: =M21*$N$2+F21 -> 572.8847198 | O21: =N21/H21 -> 413.0923632 | P21: =C21+I21+J21+E21 -> 357.7477505 | Q21: 55.34461277 | R21: =C21/B20 -> 0.5706492041 | S21: NOTE *****PARAMETERS*****
A22: 1988 | B22: 385.1930588 | C22: 207.4340368 | D22: 91.04522551 | E22: 86.71379648 | F22: 526.6871967 | G22: 52.66871967 | H22: 1.367333042 | I22: =G22 -> 52.66871967 | J22: =D22-I22 -> 38.37650584 | K22: 38.37650584 | L22: 38.37650584 | M22: 47.08434318 | N22: =M22*$N$2+F22 -> 620.8558831 | O22: =N22/H22 -> 454.063395 | P22: =C22+I22+J22+E22 -> 385.1930588 | Q22: 68.87033625 | R22: =C22/B21 -> 0.5798332387 | S22: C duration_period=10
A23: 1989 | B23: 414.8528853 | C23: 221.8778687 | D23: 103.5907134 | E23: 89.38430316 | F23: 565.0637026 | G23: 56.50637026 | H23: 1.362082132 | I23: =G23 -> 56.50637026 | J23: =D23-I23 -> 47.08434318 | K23: 47.08434318 | L23: 47.08434318 | M23: 54.183486 | N23: =M23*$N$2+F23 -> 673.4306746 | O23: =N23/H23 -> 494.412678 | P23: =C23+I23+J23+E23 -> 414.8528853 | Q23: 79.55979264 | R23: =C23/B22 -> 0.5760173079 | S23: C construction_period=1
A24: 1990 | B24: 447.5480395 | C24: 239.3934352 | D24: 115.3982906 | E24: 92.7563137 | F24: 612.1480458 | G24: 61.21480458 | H24: 1.367781761 | I24: =G24 -> 61.21480458 | J24: =D24-I24 -> 54.183486 | K24: 54.183486 | L24: 54.183486 | M24: 56.0204176 | N24: =M24*$N$2+F24 -> 724.188881 | O24: =N24/H24 -> 529.4623027 | P24: =C24+I24+J24+E24 -> 447.5480395 | Q24: 81.9142632 | R24: =C24/B23 -> 0.5770562137 | S24: C adjustment_period=2
A25: 1991 | B25: 474.6868156 | C25: 251.4315001 | D25: 122.6535708 | E25: 100.6017447 | F25: 666.3315318 | G25: 66.63315318 | H25: 1.403728753 | I25: =G25 -> 66.63315318 | J25: =D25-I25 -> 56.0204176 | K25: 56.0204176 | L25: 56.0204176 | M25: 49.0442453 | N25: =M25*$N$2+F25 -> 764.4200224 | O25: =N25/H25 -> 544.5639128 | P25: =C25+I25+J25+E25 -> 474.6868156 | Q25: 69.87709726 | R25: =C25/B24 -> 0.5617977913 | S25: NOTE *****INITIAL CONDITIONS*****
A26: 1992 | B26: 485.6734722 | C26: 261.1044942 | D26: 121.2794402 | E26: 103.2895378 | F26: 722.3519494 | G26: 72.23519494 | H26: 1.487320166 | I26: =G26 -> 72.23519494 | J26: =D26-I26 -> 49.0442453 | K26: 49.0442453 | L26: 49.0442453 | M26: 38.41112318 | N26: =M26*$N$2+F26 -> 799.1741957 | O26: =N26/H26 -> 537.3249243 | P26: =C26+I26+J26+E26 -> 485.6734722 | Q26: 51.65145213 | R26: =C26/B25 -> 0.5500563437 | S26: N capital=75.5795
A27: 1993 | B27: 488.4623979 | C27: 266.4994892 | D27: 115.5507426 | E27: 106.4121661 | F27: 771.3961947 | G27: 77.13961947 | H27: 1.579233525 | I27: =G27 -> 77.13961947 | J27: =D27-I27 -> 38.41112318 | K27: 38.41112318 | L27: 38.41112318 | M27: 29.32683724 | N27: =M27*$N$2+F27 -> 830.0498691 | O27: =N27/H27 -> 525.602994 | P27: =C27+I27+J27+E27 -> 488.4623979 | Q27: 37.14059608 | R27: =C27/B26 -> 0.5487215268 | S27: N asset_under_construction=13.5540
A28: 1994 | B28: 493.0970312 | C28: 273.9948 | D28: 110.307569 | E28: 108.7946622 | F28: 809.8073178 | G28: 80.98073178 | H28: 1.642287961 | I28: =G28 -> 80.98073178 | J28: =D28-I28 -> 29.32683724 | K28: 29.32683724 | L28: 29.32683724 | M28: 27.26200695 | N28: =M28*$N$2+F28 -> 864.3313317 | O28: =N28/H28 -> 526.2970639 | P28: =C28+I28+J28+E28 -> 493.0970312 | Q28: 33.20003264 | R28: =C28/B27 -> 0.5609332492 | S28: NOTE *****OUTPUT VARIABLES*****
A29: 1995 | B29: 499.4028298 | C29: 277.7441 | D29: 111.1754225 | E29: 110.4833073 | F29: 839.1341551 | G29: 83.91341551 | H29: 1.680275131 | I29: =G29 -> 83.91341551 | J29: =D29-I29 -> 27.26200695 | K29: 27.26200695 | L29: 27.26200695 | M29: 26.50883599 | N29: =M29*$N$2+F29 -> 892.151827 | O29: =N29/H29 -> 530.9558005 | P29: =C29+I29+J29+E29 -> 499.4028298 | Q29: 31.5529707 | R29: =C29/B28 -> 0.5632645958 | S29: PLOT production,demand,actual_value
A30: 1996 | B30: 509.7701246 | C30: 284.0709 | D30: 113.1484522 | E30: 112.5507724 | F30: 866.396162 | G30: 86.6396162 | H30: 1.699582067 | I30: =G30 -> 86.6396162 | J30: =D30-I30 -> 26.50883599 | K30: 26.50883599 | L30: 26.50883599 | M30: 26.60869508 | N30: =M30*$N$2+F30 -> 919.6135522 | O30: =N30/H30 -> 541.0821696 | P30: =C30+I30+J30+E30 -> 509.7701246 | Q30: 31.312045 | R30: =C30/B29 -> 0.5688211661 | S30: NOTE *****SPECIFICATIONS FOR SIMULATION RUN*****
A31: 1997 | B31: 520.8036482 | C31: 289.9811 | D31: 115.8991949 | E31: 114.9233534 | F31: 892.904998 | G31: 89.2904998 | H31: 1.714475313 | I31: =G31 -> 89.2904998 | J31: =D31-I31 -> 26.60869508 | K31: 26.60869508 | L31: 26.60869508 | M31: 15.90428168 | N31: =M31*$N$2+F31 -> 924.7135614 | O31: =N31/H31 -> 539.3565916 | P31: =C31+I31+J31+E31 -> 520.8036482 | Q31: 18.55294335 | R31: =C31/B30 -> 0.568846792 | S31: SPEC DT=1/LENGTH=80/PRTPER=1/PLTPER=1
A32: 1998 | B32: 509.8327208 | C32: 287.545 | D32: 107.855651 | E32: 114.4320698 | F32: 919.5136931 | G32: 91.95136931 | H32: 1.80355959 | I32: =G32 -> 91.95136931 | J32: =D32-I32 -> 15.90428168 | K32: 15.90428168 | L32: 15.90428168 | M32: 11.09620503 | N32: =M32*$N$2+F32 -> 941.7061031 | O32: =N32/H32 -> 522.1375042 | P32: =C32+I32+J32+E32 -> 509.8327208 | Q32: 12.30478338 | R32: =C32/B31 -> 0.5521178682 | S32: NOTE *****SUPPLEMENT*****
A33: 1999 | B33: 502.3697585 | C33: 288.8771 | D33: 104.6380025 | E33: 108.854656 | F33: 935.4179748 | G33: 93.54179748 | H33: 1.862010917 | I33: =G33 -> 93.54179748 | J33: =D33-I33 -> 11.09620503 | K33: 11.09620503 | L33: 11.09620503 | M33: 10.30853471 | N33: =M33*$N$2+F33 -> 956.0350442 | O33: =N33/H33 -> 513.4422335 | P33: =C33+I33+J33+E33 -> 502.3697585 | Q33: 11.07247505 | R33: =C33/B32 -> 0.5666115339 | S33: A actual_value=TABXL(SHEET2!B4)
A34: 2000 | B34: 507.7743962 | C34: 288.1672 | D34: 104.9599527 | E34: 114.6472435 | F34: 946.5141798 | G34: 94.65141798 | H34: 1.864044715 | I34: =G34 -> 94.65141798 | J34: =D34-I34 -> 10.30853471 | K34: 10.30853471 | L34: 10.30853471 | M34: 7.071928549 | N34: =M34*$N$2+F34 -> 960.6580369 | O34: =N34/H34 -> 515.3621203 | P34: =C34+I34+J34+E34 -> 507.7743962 | Q34: 7.587724147 | R34: =C34/B33 -> 0.5736157385 | S34: N TIME=1970
A35: 2001 | B35: 505.5432 | C35: 289.7879 | D35: 102.7542 | E35: 113.0011 | F35: 956.8227145 | G35: 95.68227145 | H35: 1.892662614 | I35: =G35 -> 95.68227145 | J35: =D35-I35 -> 7.071928549 | K35: 7.071928549 | L35: 7.071928549 | M35: -1.265764306 | N35: =M35*$N$2+F35 -> 954.2911859 | O35: =N35/H35 -> 504.2056512 | P35: =C35+I35+J35+E35 -> 505.5432 | Q35: -1.337548802 | R35: =C35/B34 -> 0.570702072
A36: 2002 | B36: 499.147 | C36: 289.0383 | D36: 95.1237 | E36: 114.985 | F36: 963.8946431 | G36: 96.38946431 | H36: 1.931083715 | I36: =G36 -> 96.38946431 | J36: =D36-I36 -> -1.265764306 | K36: -1.265764306 | L36: -1.265764306 | M36: -2.770287876 | N36: =M36*$N$2+F36 -> 958.3540673 | O36: =N36/H36 -> 496.2778464 | P36: =C36+I36+J36+E36 -> 499.147 | Q36: -2.869153578 | R36: =C36/B35 -> 0.5717380829
A37: 2003 | B37: 498.8547 | C37: 287.5142 | D37: 93.4926 | E37: 117.8479 | F37: 962.6288788 | G37: 96.26288788 | H37: 1.929677878 | I37: =G37 -> 96.26288788 | J37: =D37-I37 -> -2.770287876 | K37: -2.770287876 | L37: -2.770287876 | M37: -3.313659088 | N37: =M37*$N$2+F37 -> 956.0015606 | O37: =N37/H37 -> 495.4202832 | P37: =C37+I37+J37+E37 -> 498.8547 | Q37: -3.434416828 | R37: =C37/B36 -> 0.5760110749
A38: 2004 | B38: 503.7253 | C38: 288.5993 | D38: 92.6722 | E38: 122.4538 | F38: 959.8585909 | G38: 95.98585909 | H38: 1.905519915 | I38: =G38 -> 95.98585909 | J38: =D38-I38 -> -3.313659088 | K38: -3.313659088 | L38: -3.313659088 | M38: -2.035993179 | N38: =M38*$N$2+F38 -> 955.7866045 | O38: =N38/H38 -> 501.5883576 | P38: =C38+I38+J38+E38 -> 503.7253 | Q38: -2.13694243 | R38: =C38/B37 -> 0.5785237665
A39: 2005 | B39: 503.9028 | C39: 291.1326 | D39: 93.6185 | E39: 119.1517 | F39: 956.5449318 | G39: 95.65449318 | H39: 1.898272706 | I39: =G39 -> 95.65449318 | J39: =D39-I39 -> -2.035993179 | K39: -2.035993179 | L39: -2.035993179 | M39: 0.1333061387 | N39: =M39*$N$2+F39 -> 956.8115441 | O39: =N39/H39 -> 504.0432499 | P39: =C39+I39+J39+E39 -> 503.9028 | Q39: 0.1404499346 | R39: =C39/B38 -> 0.5779590582
A40: 2006 | B40: 506.687 | C40: 293.4333 | D40: 95.5842 | E40: 117.6695 | F40: 954.5089386 | G40: 95.45089386 | H40: 1.88382362 | I40: =G40 -> 95.45089386 | J40: =D40-I40 -> 0.1333061387 | K40: 0.1333061387 | L40: 0.1333061387 | M40: 2.545875525 | N40: =M40*$N$2+F40 -> 959.6006897 | O40: =N40/H40 -> 509.389881 | P40: =C40+I40+J40+E40 -> 506.687 | Q40: 2.702880989 | R40: =C40/B39 -> 0.5823212334
A41: 2007 | B41: 512.9751 | C41: 294.122 | D41: 98.0101 | E41: 120.843 | F41: 954.6422448 | G41: 95.46422448 | H41: 1.860991391 | I41: =G41 -> 95.46422448 | J41: =D41-I41 -> 2.545875525 | K41: 2.545875525 | L41: 2.545875525 | M41: -0.2508120276 | N41: =M41*$N$2+F41 -> 954.1406207 | O41: =N41/H41 -> 512.7055533 | P41: =C41+I41+J41+E41 -> 512.9751 | Q41: -0.2695466823 | R41: =C41/B40 -> 0.5804806518
A42: 2008 | B42: 501.2093 | C42: 292.0554 | D42: 95.468 | E42: 113.6859 | F42: 957.1881203 | G42: 95.71881203 | H42: 1.909757302 | I42: =G42 -> 95.71881203 | J42: =D42-I42 -> -0.2508120276 | K42: -0.2508120276 | L42: -0.2508120276 | M42: -11.64293082 | N42: =M42*$N$2+F42 -> 933.9022586 | O42: =N42/H42 -> 489.0162001 | P42: =C42+I42+J42+E42 -> 501.2093 | Q42: -12.19309995 | R42: =C42/B41 -> 0.5693364064
A43: 2009 | B43: 471.1388 | C43: 282.9417 | D43: 84.0508 | E43: 104.1463 | F43: 956.9373082 | G43: 95.69373082 | H43: 2.031115476 | I43: =G43 -> 95.69373082 | J43: =D43-I43 -> -11.64293082 | K43: -11.64293082 | L43: -11.64293082 | M43: -11.31973774 | N43: =M43*$N$2+F43 -> 934.2978328 | O43: =N43/H43 -> 459.9924739 | P43: =C43+I43+J43+E43 -> 471.1388 | Q43: -11.14632612 | R43: =C43/B42 -> 0.5645180566
A44: 2010 | B44: 482.3844 | C44: 285.8671 | D44: 83.2097 | E44: 113.3076 | F44: 945.2943774 | G44: 94.52943774 | H44: 1.95962883 | I44: =G44 -> 94.52943774 | J44: =D44-I44 -> -11.31973774 | K44: -11.31973774 | L44: -11.31973774 | M44: -10.49306397 | N44: =M44*$N$2+F44 -> 924.3082495 | O44: =N44/H44 -> 471.6751638 | P44: =C44+I44+J44+E44 -> 482.3844 | Q44: -10.70923616 | R44: =C44/B43 -> 0.6067577113
A45: 2011 | B45: 470.6233 | C45: 284.7843 | D45: 82.9044 | E45: 102.9346 | F45: 933.9746397 | G45: 93.39746397 | H45: 1.984548236 | I45: =G45 -> 93.39746397 | J45: =D45-I45 -> -10.49306397 | K45: -10.49306397 | L45: -10.49306397 | Q45: 0 | R45: =C45/B44 -> 0.5903679721
A46: =A45+$A$2 -> 2012 | E46: =E45 -> 102.9346 | H46: =H45 -> 1.984548236 | Q46: =Q45 -> 0 | R46: =R45 -> 0.5903679721
A47: =A46+$A$2 -> 2013 | E47: =E46 -> 102.9346 | H47: =H46 -> 1.984548236 | Q47: =Q46 -> 0 | R47: =R46 -> 0.5903679721
A48: 2014 | E48: 102.9346 | H48: 1.984548236 | Q48: 0 | R48: 0.5903679721
A49: 2015 | E49: 102.9346 | H49: 1.984548236 | Q49: 0 | R49: 0.5903679721
A50: 2016 | E50: 102.9346 | H50: 1.984548236 | Q50: 0 | R50: 0.5903679721
A51: 2017 | E51: 102.9346 | H51: 1.984548236 | Q51: 0 | R51: 0.5903679721
A52: 2018 | E52: 102.9346 | H52: 1.984548236 | Q52: 0 | R52: 0.5903679721
A53: 2019 | E53: 102.9346 | H53: 1.984548236 | Q53: 0 | R53: 0.5903679721
A54: 2020 | E54: 102.9346 | H54: 1.984548236 | Q54: 0 | R54: 0.5903679721
A55: 2021 | E55: 102.9346 | H55: 1.984548236 | Q55: 0 | R55: 0.5903679721
A56: 2022 | E56: 102.9346 | H56: 1.984548236 | Q56: 0 | R56: 0.5903679721
A57: 2023 | E57: 102.9346 | H57: 1.984548236 | Q57: 0 | R57: 0.5903679721
A58: 2024 | E58: 102.9346 | H58: 1.984548236 | Q58: 0 | R58: 0.5903679721
A59: 2025 | E59: 102.9346 | H59: 1.984548236 | Q59: 0 | R59: 0.5903679721
A60: 2026 | E60: 102.9346 | H60: 1.984548236 | Q60: 0 | R60: 0.5903679721
A61: 2027 | E61: 102.9346 | H61: 1.984548236 | Q61: 0 | R61: 0.5903679721
A62: 2028 | E62: 102.9346 | H62: 1.984548236 | Q62: 0 | R62: 0.5903679721
A63: 2029 | E63: 102.9346 | H63: 1.984548236 | Q63: 0 | R63: 0.5903679721
A64: 2030 | E64: 102.9346 | H64: 1.984548236 | Q64: 0 | R64: 0.5903679721
A65: 2031 | E65: 102.9346 | H65: 1.984548236 | Q65: 0 | R65: 0.5903679721
A66: 2032 | E66: 102.9346 | H66: 1.984548236 | Q66: 0 | R66: 0.5903679721
A67: 2033 | E67: 102.9346 | H67: 1.984548236 | Q67: 0 | R67: 0.5903679721
A68: 2034 | E68: 102.9346 | H68: 1.984548236 | Q68: 0 | R68: 0.5903679721
A69: 2035 | E69: 102.9346 | H69: 1.984548236 | Q69: 0 | R69: 0.5903679721
A70: 2036 | E70: 102.9346 | H70: 1.984548236 | Q70: 0 | R70: 0.5903679721
A71: 2037 | E71: 102.9346 | H71: 1.984548236 | Q71: 0 | R71: 0.5903679721
A72: 2038 | E72: 102.9346 | H72: 1.984548236 | Q72: 0 | R72: 0.5903679721
A73: 2039 | E73: 102.9346 | H73: 1.984548236 | Q73: 0 | R73: 0.5903679721
A74: 2040 | E74: 102.9346 | H74: 1.984548236 | Q74: 0 | R74: 0.5903679721
A75: 2041 | E75: 102.9346 | H75: 1.984548236 | Q75: 0 | R75: 0.5903679721
A76: 2042 | E76: 102.9346 | H76: 1.984548236 | Q76: 0 | R76: 0.5903679721
A77: 2043 | E77: 102.9346 | H77: 1.984548236 | Q77: 0 | R77: 0.5903679721
A78: 2044 | E78: 102.9346 | H78: 1.984548236 | Q78: 0 | R78: 0.5903679721
A79: 2045 | E79: 102.9346 | H79: 1.984548236 | Q79: 0 | R79: 0.5903679721
A80: 2046 | E80: 102.9346 | H80: 1.984548236 | Q80: 0 | R80: 0.5903679721
A81: 2047 | E81: 102.9346 | H81: 1.984548236 | Q81: 0 | R81: 0.5903679721
A82: 2048 | E82: 102.9346 | H82: 1.984548236 | Q82: 0 | R82: 0.5903679721
A83: 2049 | E83: 102.9346 | H83: 1.984548236 | Q83: 0 | R83: 0.5903679721
A84: 2050 | E84: 102.9346 | H84: 1.984548236 | Q84: 0 | R84: 0.5903679721

Sheet Dyna1
A1: * PROTOTYPE Ⅰ | IL1: Dyna1 グラフ 2
A2: NOTE *****NATIONAL ECONOMY WITH DECISION PROCESS OF CAPITAL INVESTMENT*****
A3: A DEMAND.K=CONSUMPTION.K+REPLACEMENT.K+NET_INVESTMENT.K+OTHER_EXPENDITURES.K
A4: A CONSUMPTION.K=PROPENCITY_TO_CONSUME.K×PRODUCTION.JK
A5: R PRODUCTION.KL=CAPITAL.K/CAPITAL_COEFFICIENT.K
A6: R CAPITAL_INVESTMENT.KL=REPLACEMENT.K+NET_INVESTMENT.K
A7: A REPLACEMENT.K=CAPITAL.K/DURATION_PERIOD
A8: L CAPITAL.K=CAPITAL.J+DT×(CAPITAL_INVESTMENT.JK-RETIREMENT.JK)
A9: R RETIREMENT.KL=REPLACEMENT.K
A10: A NET_INVESTMENT.K=ASSET_UNDER_CONSTRUCTION.K/CONSTRUCTION_PERIOD
A11: L ASSET_UNDER_CONSTRUCTION.K=ASSET_UNDER_CONSTRUCTION.J+DT×(PLANNING.JK-COMPLETION.JK)
A12: R COMPLETION.KL=NET_INVESTMENT.K
A13: R PLANNING.KL=(REQUIRED_CAPITAL.K-CAPITAL.K)/ADJUSTMENT_PERIOD
A14: A REQUIRED_CAPITAL.K=TARGET_DEMAND.K×CAPITAL_COEFFICIENT.K
A15: A TARGET_DEMAND.K=DEMAND.K+ADDITIONAL_DEMAND.K
A16: NOTE *****EXOGENOUS VARIABLES*****
A17: A OTHER_EXPENDITURES=TABXL(SHEET2!E4)
A18: A CAPITAL_COEFFICIENT=TABXL(SHEET2!H4)
A19: A ADDITIONAL_DEMAND=TABXL(SHEET2!Q4)
A20: A PROPENCITY_TO_CONSUME=TABXL(SHEET2!R4)
A21: NOTE *****PARAMETERS*****
A22: C DURATION_PERIOD=10
A23: C CONSTRUCTION_PERIOD=1
A24: C ADJUSTMENT_PERIOD=2
A25: NOTE *****INITIAL CONDITIONS*****
A26: N CAPITAL=75.5795
A27: N ASSET_UNDER_CONSTRUCTION=13.5540
A28: NOTE *****OUTPUT VARIABLES*****
A29: PLOT PRODUCTION,DEMAND,ACTUAL_VALUE
A30: NOTE *****SPECIFICATIONS FOR SIMULATION RUN*****
A31: SPEC DT=1/LENGTH=40/PRTPER=1/PLTPER=1
A32: NOTE *****SUPPLEMENT*****
A33: A ACTUAL_VALUE=TABXL(SHEET2!B4)
A34: N TIME=1970

Sheet Dyna2

Sheet Dyna3
